bitfinex/quotes_SOLUSD_20250908
["timestamp","ask_amount","ask_price","bid_price","bid_amount"]
[1757340004691,2.93287965,213.16,213.15,71.86]
[1757340005360,0.06,213.2,213.15,72.52]
[1757340005686,0.06,213.2,213.16,0.69]
[1757340005865,0.06,213.2,213.15,76.55151665]
[1757340005866,0.06,213.2,213.17,0.69]
[1757340006183,0.06,213.2,213.18,38.79]
[1757340006680,0.06,213.2,213.19,5.38065153]
[1757340006879,0.06,213.2,213.19,38.1]
[1757340007059,0.06,213.2,213.19,38.79]
[1757340007256,0.06,213.2,213.19,38.1]
[1757340007480,0.06,213.2,213.19,38.79]
[1757340007662,0.06,213.2,213.19,52.38559401]
[1757340008183,0.06,213.2,213.19,38.08]
[1757340008567,0.06,213.2,213.18,26.0]
[1757340008774,0.06,213.2,213.19,38.06]
[1757340009087,0.06,213.2,213.19,38.75]
[1757340009280,0.06,213.2,213.19,52.34559401]
[1757340010566,0.06,213.2,213.19,57.03624554]
[1757340010766,0.06,213.2,213.19,14.28559401]
[1757340010992,0.06,213.2,213.19,51.65559401]
[1757340011168,0.06,213.2,213.19,57.03624554]
[1757340011369,0.06,213.2,213.19,57.01624554]
[1757340011788,0.06,213.2,213.19,52.32559401]
[1757340012678,0.06,213.2,213.19,56.32624554]
[1757340012984,0.06,213.2,213.19,56.28624554]
[1757340013180,0.06,213.2,213.19,37.98]
[1757340013568,0.06,213.2,213.19,38.67]
[1757340013792,0.06,213.2,213.19,52.26559401]
[1757340014476,0.06,213.2,213.19,16.16093099]
[1757340014681,0.06,213.2,213.19,37.98]
[1757340014867,0.73,213.2,213.15,33.76]
[1757340015070,2.93287965,213.18,213.15,33.76]
[1757340015368,0.06,213.2,213.15,33.76]
[1757340015369,2.93287965,213.16,213.15,33.76]
[1757340015569,0.67,213.16,213.15,71.76]
[1757340015769,3.60287965,213.16,213.15,71.76]
[1757340016068,0.06,213.2,213.15,38.0]
[1757340016069,0.73,213.2,213.15,38.0]
[1757340016269,0.67,213.19,213.15,38.0]
[1757340016470,2.93287965,213.16,213.15,38.0]
[1757340016670,0.67,213.16,213.15,38.0]
[1757340016877,2.93287965,213.16,213.15,38.0]
[1757340017075,2.99287965,213.2,213.15,38.0]
[1757340017305,0.06,213.2,213.15,43.38145407]
[1757340017479,2.99287965,213.2,213.15,43.38145407]
[1757340017804,2.93287965,213.19,213.15,26.0]
[1757340018006,2.93287965,213.19,213.13,13.59559401]
[1757340018007,2.93287965,213.18,213.16,37.98]
[1757340018213,2.93287965,213.17,213.12,26.0]
[1757340018509,2.93287965,213.19,213.13,64.67]
[1757340018676,0.06,213.2,213.14,4.6917519]
[1757340018876,0.06,213.2,213.15,37.98]
[1757340019076,0.06,213.2,213.18,26.0]
[1757340019286,0.06,213.2,213.19,37.98]
[1757340019606,7.68334637,213.2,213.19,37.98]
[1757340019899,19.40942516,213.2,213.19,37.98]
[1757340020093,20.07942516,213.2,213.19,37.98]
[1757340020680,17.14654551,213.2,213.19,37.98]
[1757340020884,8.35334637,213.2,213.19,37.98]
[1757340021688,2.99287965,213.2,213.19,37.98]
[1757340021893,0.06,213.2,213.19,38.67]
[1757340022086,0.06,213.2,213.19,43.36065153]
[1757340022284,0.06,213.2,213.19,38.67]
[1757340022484,0.06,213.2,213.19,37.98]
[1757340023007,0.06,213.2,213.19,43.36065153]
[1757340023191,0.06,213.2,213.17,26.0]
[1757340023503,7.2046935,213.18,213.12,0.69]
[1757340023699,7.2046935,213.16,213.13,37.98]
[1757340023906,0.67,213.19,213.13,37.98]
[1757340024091,7.2046935,213.14,213.09,4.69282471]
[1757340024407,0.67,213.16,213.1,40.5102071]
[1757340024576,0.67,213.16,213.11,2.5302071]
[1757340024577,7.2046935,213.13,213.11,2.5302071]
[1757340024785,4.69153178,213.15,213.12,40.5102071]
[1757340024998,7.2046935,213.14,213.12,37.98]
[1757340025208,7.2046935,213.14,213.13,2.53015382]
[1757340025911,7.8746935,213.14,213.13,2.53243439]
[1757340026086,17.08805046,213.18,213.13,2.53243439]
[1757340026286,7.2046935,213.14,213.09,0.69]
[1757340026481,0.67,213.17,213.1,40.51396488]
[1757340026700,0.67,213.17,213.11,2.53396488]
[1757340026886,7.2046935,213.14,213.12,2.53396488]
[1757340027200,7.2046935,213.13,213.08,26.0]
[1757340027389,7.2046935,213.11,213.09,40.51396638]
[1757340027599,7.2046935,213.11,213.1,2.53396638]
[1757340028307,7.2046935,213.13,213.1,2.53396638]
[1757340028614,7.2046935,213.13,213.11,2.53396638]
[1757340028783,7.2046935,213.13,213.12,40.51396638]
[1757340029113,11.89666553,213.13,213.12,40.51396638]
[1757340029684,5.36087156,213.18,213.12,40.51396638]
[1757340029901,0.06,213.2,213.13,2.53396638]
[1757340030212,0.06,213.2,213.12,37.98]
[1757340030213,7.2046935,213.17,213.14,2.53396638]
[1757340030504,7.2046935,213.17,213.15,40.51396638]
[1757340030714,7.2046935,213.17,213.16,2.53396638]
[1757340031401,7.8746935,213.17,213.06,0.03]
[1757340031603,7.2046935,213.07,213.06,0.03]
[1757340031902,7.2046935,213.07,213.06,38.01]
[1757340032405,7.2046935,213.09,213.06,38.7]
[1757340033402,7.2046935,213.12,213.07,0.69]
[1757340033586,0.67,213.15,213.08,0.69]
[1757340033587,7.2046935,213.13,213.08,0.69]
[1757340033790,46.2,213.16,213.09,38.67]
[1757340034091,7.2046935,213.15,213.09,38.67]
[1757340034588,7.2046935,213.14,213.09,38.67]
[1757340034905,7.2046935,213.14,213.1,0.69]
[1757340035203,5.36110036,213.17,213.1,4.69263256]
[1757340035204,7.2046935,213.15,213.1,4.69263256]
[1757340035389,46.2,213.19,213.12,26.0]
[1757340035581,46.2,213.19,213.13,38.68]
[1757340035784,7.2046935,213.18,213.13,38.68]
[1757340036207,7.2046935,213.18,213.14,0.7]
[1757340036907,7.2046935,213.18,213.13,42.67179173]
[1757340037107,11.89557128,213.18,213.13,43.37179173]
[1757340037290,7.2046935,213.16,213.13,37.98]
[1757340037498,5.35087778,213.18,213.14,37.98]
[1757340037800,7.2046935,213.18,213.14,37.98]
[1757340038001,7.2046935,213.18,213.14,38.68]
[1757340038183,7.2046935,213.18,213.14,37.98]
[1757340038385,10.75916433,213.18,213.15,0.7]
[1757340038595,56.95916433,213.19,213.15,0.7]
[1757340038798,61.64985279,213.19,213.15,0.7]
[1757340039309,0.06,213.2,213.16,0.7]
[1757340039611,0.06,213.2,213.17,37.98]
[1757340039805,0.06,213.2,213.18,0.7]
[1757340040301,0.06,213.2,213.17,37.98]
[1757340040302,0.06,213.2,213.19,0.7]
[1757340040607,0.06,213.2,213.19,5.39065153]
[1757340041404,0.06,213.2,213.17,37.98]
[1757340041607,0.06,213.2,213.18,0.7]
[1757340042009,0.06,213.2,213.19,0.7]
[1757340042606,0.06,213.2,213.19,5.39065153]
[1757340043292,0.06,213.2,213.19,37.98]
[1757340043494,11.47916433,213.2,213.19,37.98]
[1757340043684,0.06,213.2,213.19,37.98]
[1757340046103,0.06,213.2,213.19,43.37065153]
[1757340046699,0.06,213.2,213.16,26.0]
[1757340047010,10.75916433,213.19,213.17,63.96]
[1757340047210,0.06,213.2,213.17,64.66]
[1757340047403,0.06,213.2,213.17,63.96]
[1757340048610,11.41916433,213.19,213.17,63.96]
[1757340048813,11.41916433,213.19,213.18,37.96]
[1757340049014,10.75916433,213.19,213.18,37.96]
[1757340049614,0.06,213.2,213.06,0.03]
[1757340049822,13.59559401,213.18,213.08,10.75916433]
[1757340050028,10.75916433,213.15,213.07,6.2]
[1757340050234,0.66,213.15,213.08,13.59559401]
[1757340050444,0.66,213.19,213.08,14.06490131]
[1757340050734,11.41916433,213.19,213.11,26.0]
[1757340050932,10.75916433,213.17,213.12,39.7]
[1757340051337,10.75916433,213.14,213.11,26.0]
[1757340051510,4.69110525,213.17,213.13,39.7]
[1757340051835,16.41883429,213.17,213.13,39.7]
[1757340052125,0.66,213.16,213.13,39.7]
[1757340052531,10.75916433,213.14,213.13,39.7]
[1757340052901,11.41916433,213.14,213.13,39.66]
[1757340053436,0.66,213.18,213.13,39.66]
[1757340053735,10.81916433,213.2,213.14,0.7]
[1757340054110,10.75916433,213.18,213.14,0.7]
[1757340054439,10.75916433,213.17,213.13,39.66]
[1757340054608,10.75916433,213.16,213.13,39.66]
[1757340054805,10.75916433,213.14,213.08,10.75916433]
[1757340055012,10.75916433,213.09,213.08,10.75916433]
[1757340055524,10.75916433,213.09,213.07,36.7]
[1757340055930,10.75916433,213.11,213.07,37.4]
[1757340056136,10.75916433,213.11,213.07,41.39327318]
[1757340056426,10.75916433,213.11,213.07,42.09327318]
[1757340056623,0.66,213.14,213.07,36.7]
[1757340057022,10.75916433,213.1,213.07,41.39327607]
[1757340057823,10.75916433,213.13,213.08,0.7]
[1757340058026,0.06,213.2,213.12,26.0]
[1757340058226,10.81916433,213.2,213.16,26.0]
[1757340058441,10.81916433,213.2,213.17,40.5]
[1757340058610,10.81916433,213.2,213.18,0.7]
[1757340059117,10.81916433,213.2,213.19,39.84]
[1757340059532,10.81916433,213.2,213.16,26.0]
[1757340059841,0.06,213.2,213.17,40.52]
[1757340060008,0.06,213.2,213.18,39.8]
[1757340060208,0.06,213.2,213.19,39.8]
[1757340060615,0.06,213.2,213.16,26.0]
[1757340060822,0.06,213.2,213.17,26.0]
[1757340061018,0.06,213.2,213.18,39.76]
[1757340061311,0.06,213.2,213.15,0.7]
[1757340061531,0.06,213.2,213.16,45.15119317]
[1757340061918,0.06,213.2,213.17,0.7]
[1757340062123,0.06,213.2,213.18,39.76]
[1757340062682,0.06,213.2,213.14,26.0]
[1757340062945,10.75916433,213.18,213.15,39.76]
[1757340063236,0.06,213.2,213.16,0.7]
[1757340063437,0.06,213.2,213.18,4.69087156]
[1757340063639,0.06,213.2,213.17,26.0]
[1757340063815,0.06,213.2,213.19,39.74]
[1757340064215,0.06,213.2,213.19,39.7]
[1757340064417,0.72,213.2,213.19,39.7]
[1757340064620,11.47916433,213.2,213.19,39.7]
[1757340064920,0.72,213.2,213.12,64.45217429]
[1757340065119,10.75916433,213.19,213.13,39.7]
[1757340065541,0.06,213.2,213.14,4.6917519]
[1757340066039,4.75044669,213.2,213.13,45.09196774]
[1757340066218,4.75044669,213.2,213.13,0.7]
[1757340066420,10.75916433,213.19,213.14,39.66]
[1757340066620,10.75916433,213.17,213.12,33.76]
[1757340066936,10.75916433,213.18,213.13,39.64]
[1757340067250,11.42916433,213.18,213.13,39.64]
[1757340067757,4.69073227,213.19,213.13,40.34]
[1757340067919,4.69073227,213.19,213.13,45.03195383]
[1757340068238,0.06,213.2,213.13,45.03195383]
[1757340068427,0.06,213.2,213.14,0.7]
[1757340069330,0.06,213.2,213.16,26.0]
[1757340069633,0.06,213.2,213.17,44.29097261]
[1757340069939,0.06,213.2,213.17,39.6]
[1757340070235,0.06,213.2,213.12,33.76]
[1757340070417,10.75916433,213.17,213.12,33.76]
[1757340070620,10.75916433,213.15,213.12,33.76]
[1757340070850,0.67,213.15,213.13,39.56]
[1757340071054,10.75916433,213.18,213.13,40.26]
[1757340071223,0.67,213.17,213.12,33.76]
[1757340071554,4.69153097,213.16,213.13,39.54]
[1757340071846,0.67,213.17,213.13,39.54]
[1757340072425,11.48916433,213.2,213.13,39.54]
[1757340072623,16.17968812,213.2,213.13,44.9319397]
[1757340072844,0.06,213.2,213.13,44.9319397]
[1757340073031,0.06,213.2,213.14,0.7]
[1757340073631,0.06,213.2,213.15,16.42036124]
[1757340073864,0.06,213.2,213.16,53.77559401]
[1757340074151,0.06,213.2,213.19,39.59559401]
[1757340074358,0.06,213.2,213.19,79.05559401]
[1757340074555,0.06,213.2,213.19,79.75559401]
[1757340074729,0.06,213.2,213.19,26.0]
[1757340074927,0.06,213.2,213.19,65.46]
[1757340075473,0.06,213.2,213.19,66.16]
[1757340075757,0.06,213.2,213.19,70.85065153]
[1757340076755,0.06,213.2,213.19,70.79065153]
[1757340077137,0.06,213.2,213.19,31.39065153]
[1757340077332,0.06,213.2,213.19,70.79065153]
[1757340077654,0.06,213.2,213.19,70.75065153]
[1757340078056,0.06,213.2,213.19,84.34624554]
[1757340078441,0.06,213.2,213.19,44.98624554]
[1757340078659,0.06,213.2,213.19,84.34624554]
[1757340079037,0.06,213.2,213.19,44.98624554]
[1757340079239,0.06,213.2,213.15,0.7]
[1757340079450,0.06,213.2,213.16,53.81559401]
[1757340079651,0.06,213.2,213.16,58.50680379]
[1757340079949,0.06,213.2,213.19,4.69065153]
[1757340080150,0.06,213.2,213.19,44.21065153]
[1757340080460,0.06,213.2,213.19,44.91065153]
[1757340080632,0.06,213.2,213.18,13.59559401]
[1757340080829,0.06,213.2,213.17,4.69089934]
[1757340081133,0.06,213.2,213.18,39.48]
[1757340081640,11.42916433,213.19,213.14,0.03]
[1757340081849,11.42916433,213.19,213.15,39.46]
[1757340082042,0.67,213.19,213.15,39.46]
[1757340082242,0.67,213.18,213.14,0.03]
[1757340082445,10.75916433,213.15,213.14,0.03]
[1757340082657,10.75916433,213.13,213.09,0.03]
[1757340082859,13.59559401,213.19,213.12,30.92]
[1757340083046,10.75916433,213.13,213.12,30.92]
[1757340083239,11.42916433,213.13,213.09,0.03]
[1757340083471,11.42916433,213.12,213.09,0.03]
[1757340083765,11.42916433,213.12,213.11,39.49]
[1757340084066,16.12135652,213.12,213.11,39.49]
[1757340084266,16.12135652,213.12,213.11,39.45]
[1757340084560,10.75916433,213.13,213.11,39.45]
[1757340084859,10.75916433,213.14,213.11,39.45]
[1757340085066,0.67,213.13,213.11,0.03]
[1757340085367,10.75916433,213.12,213.11,0.03]
[1757340085564,10.75916433,213.12,213.11,27.61]
[1757340085756,11.42916433,213.12,213.09,0.03]
[1757340085940,10.75916433,213.1,213.09,0.03]
[1757340086468,11.42916433,213.1,213.09,0.03]
[1757340087052,11.42916433,213.1,213.09,39.41]
[1757340087253,11.42916433,213.1,213.09,41.95839704]
[1757340087563,11.42916433,213.1,213.09,39.41]
[1757340087939,16.12179689,213.1,213.09,39.41]
[1757340088650,5.36263256,213.1,213.09,39.35]
[1757340088850,16.12179689,213.1,213.09,39.35]
[1757340089068,5.36263256,213.1,213.09,41.89718428]
[1757340089241,4.69241814,213.11,213.09,39.35]
[1757340089441,10.75916433,213.12,213.09,39.35]
[1757340089642,5.36176776,213.14,213.09,39.35]
[1757340089962,10.75916433,213.12,213.09,39.35]
[1757340090370,4.69212356,213.13,213.09,39.35]
[1757340090672,10.75916433,213.11,213.09,0.03]
[1757340090966,0.67,213.12,213.1,39.28]
[1757340091136,0.67,213.11,213.1,39.28]
[1757340091339,0.67,213.14,213.1,39.28]
[1757340091865,16.42036124,213.15,213.09,0.03]
[1757340092041,5.36199613,213.13,213.1,39.26]
[1757340092237,10.75916433,213.13,213.1,39.26]
[1757340092662,10.75916433,213.12,213.1,39.26]
[1757340092966,10.75916433,213.12,213.11,39.26]
[1757340093169,4.6910498,213.18,213.11,39.96]
[1757340093468,0.06,213.2,213.11,39.96]
[1757340093469,0.06,213.2,213.14,26.0]
[1757340093664,10.81916433,213.2,213.14,26.0]
[1757340093842,0.06,213.2,213.14,26.7]
[1757340094050,0.06,213.2,213.15,4.69153178]
[1757340094248,0.06,213.2,213.16,39.24]
[1757340094471,0.06,213.2,213.16,39.94]
[1757340094765,0.06,213.2,213.19,26.0]
[1757340094962,0.06,213.2,213.17,0.7]
[1757340095175,0.06,213.2,213.18,39.24]
[1757340095378,0.06,213.2,213.19,39.22]
[1757340095584,10.81916433,213.2,213.19,39.22]
[1757340095868,0.06,213.2,213.17,26.0]
[1757340096178,0.06,213.2,213.16,26.0]
[1757340096374,10.75916433,213.17,213.13,33.76]
[1757340096578,10.75916433,213.16,213.13,33.76]
[1757340096884,0.06,213.2,213.13,33.76]
[1757340096885,10.75916433,213.14,213.13,33.76]
[1757340097047,11.45916433,213.14,213.13,72.96]
[1757340097451,10.75916433,213.14,213.13,72.96]
[1757340097649,11.45916433,213.14,213.13,33.76]
[1757340097865,11.45916433,213.14,213.13,72.94]
[1757340098051,16.15091623,213.14,213.13,72.94]
[1757340098649,15.45091623,213.14,213.13,72.94]
[1757340098849,0.7,213.17,213.13,72.94]
[1757340099084,0.06,213.14,213.13,72.94]
[1757340099881,0.06,213.14,213.13,78.30197203]
[1757340100465,0.06,213.14,213.13,33.76]
[1757340100666,7.96882814,213.14,213.13,72.88]
[1757340101775,7.96882814,213.14,213.13,33.76]
[1757340101970,7.96882814,213.14,213.13,72.88]
[1757340102155,12.66058004,213.14,213.13,72.88]
[1757340102353,13.59559401,213.13,213.09,0.03]
[1757340102545,7.20882814,213.1,213.09,0.03]
[1757340102744,7.20882814,213.1,213.07,0.03]
[1757340102962,7.20882814,213.08,213.07,0.03]
[1757340103145,20.80442215,213.08,213.07,0.03]
[1757340103348,20.80442215,213.08,213.07,30.33]
[1757340103349,21.50442215,213.08,213.07,30.33]
[1757340103549,21.50442215,213.08,213.07,0.03]
[1757340103856,7.90882814,213.08,213.07,39.13]
[1757340104251,5.39307302,213.08,213.07,39.13]
[1757340104555,12.60190116,213.08,213.07,39.13]
[1757340104764,12.60190116,213.08,213.07,0.03]
[1757340105067,12.60190116,213.08,213.07,39.11]
[1757340105549,5.39307302,213.08,213.07,39.11]
[1757340105750,12.60190116,213.08,213.07,0.03]
[1757340105958,12.60190116,213.08,213.05,0.03]
[1757340105959,39.59559401,213.06,213.05,0.03]
[1757340106159,46.80442215,213.06,213.05,0.03]
[1757340106362,52.19793571,213.06,213.05,0.03]
[1757340107159,12.6023417,213.06,213.05,0.03]
[1757340107986,5.39351356,213.06,213.05,0.03]
[1757340108173,12.6023417,213.06,213.05,0.03]
[1757340109197,26.19793571,213.06,213.05,0.03]
[1757340109357,26.19793571,213.06,213.04,1e-08]
[1757340109358,20.80442215,213.05,213.04,1e-08]
[1757340109755,21.50442215,213.05,213.04,1e-08]
[1757340110481,26.19815601,213.05,213.04,1e-08]
[1757340111794,18.98932787,213.05,213.04,1e-08]
[1757340111962,26.19815601,213.05,213.04,1e-08]
[1757340112360,4.69373386,213.05,213.04,1e-08]
[1757340112554,11.902562,213.05,213.04,1e-08]
[1757340113365,4.69353714,213.06,213.04,1e-08]
[1757340113566,4.69353714,213.06,213.04,0.71000001]
[1757340114292,11.90236528,213.06,213.05,38.92]
[1757340114790,7.20882814,213.06,213.05,38.92]
[1757340114989,11.9023417,213.06,213.05,38.92]
[1757340115391,4.69306983,213.09,213.05,39.63]
[1757340115585,4.69306983,213.09,213.06,0.71]
[1757340115893,7.20882814,213.09,213.06,0.71]
[1757340116190,7.20882814,213.08,213.05,38.92]
[1757340116392,4.69329328,213.07,213.04,1e-08]
[1757340116693,4.69329328,213.07,213.05,39.59]
[1757340116891,11.90212142,213.07,213.05,39.59]
[1757340117691,11.90212142,213.07,213.05,0.71]
[1757340117995,7.20882814,213.06,213.04,1e-08]
[1757340118169,4.69329328,213.07,213.04,1e-08]
[1757340118374,7.20882814,213.05,213.04,1e-08]
[1757340118584,7.20882814,213.06,213.04,38.82000001]
[1757340118782,33.90882814,213.05,213.04,1e-08]
[1757340120282,37.902562,213.05,213.04,1e-08]
[1757340121195,30.69373386,213.05,213.04,1e-08]
[1757340121387,37.902562,213.05,213.04,39.04000001]
[1757340121701,30.69373386,213.05,213.04,39.04000001]
[1757340121904,37.902562,213.05,213.04,39.04000001]
[1757340122297,37.902562,213.05,213.04,1e-08]
[1757340122700,4.75314016,213.08,213.04,1e-08]
[1757340122999,0.06,213.08,213.04,0.71000001]
[1757340123198,0.06,213.08,213.04,3.24604274]
[1757340123399,0.06,213.08,213.05,0.71]
[1757340123599,0.06,213.08,213.06,39.3]
[1757340123794,0.06,213.11,213.07,0.71]
[1757340124104,0.06,213.11,213.08,39.3]
[1757340124280,0.06,213.11,213.1,26.0]
[1757340124479,0.06,213.11,213.09,0.71]
[1757340124784,0.06,213.11,213.1,40.01]
[1757340124981,0.06,213.11,213.1,40.03]
[1757340125582,0.06,213.11,213.1,0.71]
[1757340125784,0.06,213.11,213.1,40.01]
[1757340125986,0.06,213.11,213.06,26.0]
[1757340126206,7.26882814,213.11,213.07,39.95]
[1757340126386,7.26882814,213.11,213.07,39.28]
[1757340126705,0.06,213.11,213.08,39.95]
[1757340126906,0.06,213.11,213.09,0.67]
[1757340127296,0.06,213.11,213.1,0.67]
[1757340127896,0.06,213.11,213.1,26.67]
[1757340128402,0.06,213.11,213.04,1e-08]
[1757340128403,7.94882814,213.11,213.04,1e-08]
[1757340128584,0.74,213.11,213.05,41.80117445]
[1757340128790,11.9023417,213.06,213.05,39.26]
[1757340129183,4.69351356,213.06,213.05,39.26]
[1757340129508,7.20882814,213.06,213.05,39.26]
[1757340129697,4.69267193,213.1,213.05,39.26]
[1757340130010,7.20882814,213.06,213.04,1e-08]
[1757340130304,0.06,213.11,213.04,2.54142355]
[1757340130305,7.20882814,213.05,213.04,2.54142355]
[1757340130698,7.20882814,213.05,213.04,41.88142355]
[1757340130898,11.902562,213.05,213.04,41.88142355]
[1757340131114,12.41158141,213.1,213.04,41.88142355]
[1757340131406,12.41158141,213.1,213.05,41.88142354]
[1757340131583,4.69300102,213.09,213.05,39.34]
[1757340132109,4.69300102,213.09,213.05,40.01]
[1757340132292,0.06,213.11,213.06,3.21172966]
[1757340132293,4.75261796,213.11,213.06,3.21172966]
[1757340132498,0.06,213.11,213.07,0.67]
[1757340132700,0.06,213.11,213.08,0.67]
[1757340132908,0.06,213.11,213.09,0.67]
[1757340133215,0.06,213.11,213.1,39.3]
[1757340133794,0.06,213.11,213.1,53.56559401]
[1757340135109,0.06,213.11,213.1,58.25822657]
[1757340136703,0.06,213.11,213.1,62.05585849]
[1757340137009,0.06,213.14,213.1,62.05585849]
[1757340137010,0.06,213.14,213.13,44.28756604]
[1757340137186,0.06,213.14,213.13,44.75676324]
[1757340137387,1e-08,213.14,213.13,45.42676324]
[1757340137621,0.06,213.19,213.17,39.59559401]
[1757340137827,0.06,213.2,213.19,13.59559401]
[1757340138032,0.06,213.2,213.19,52.85559401]
[1757340138221,0.06,213.2,213.19,14.26559401]
[1757340138413,0.06,213.2,213.19,53.50559401]
[1757340139216,0.06,213.2,213.19,58.19624554]
[1757340139712,0.06,213.2,213.19,18.28624554]
[1757340140035,0.06,213.2,213.19,39.18]
[1757340141314,0.06,213.2,213.18,26.0]
[1757340141501,7.88882814,213.19,213.13,13.59559401]
[1757340141698,26.0,213.12,213.1,33.81]
[1757340141910,7.20882814,213.13,213.11,39.16]
[1757340142125,26.0,213.12,213.11,39.16]
[1757340142498,26.0,213.12,213.1,33.81]
[1757340142703,7.88882814,213.15,213.11,39.16]
[1757340143115,0.06,213.2,213.11,39.16]
[1757340143116,4.69133872,213.16,213.11,39.16]
[1757340143320,26.0,213.14,213.11,39.16]
[1757340143952,11.89992132,213.17,213.11,39.16]
[1757340144128,11.89992132,213.17,213.1,38.5024704]
[1757340144446,26.68,213.18,213.11,39.79]
[1757340144447,26.0,213.18,213.11,39.79]
[1757340144822,0.74,213.2,213.12,13.59559401]
[1757340145016,0.06,213.2,213.14,13.59559401]
[1757340145222,0.06,213.2,213.16,4.69131169]
[1757340145445,0.06,213.2,213.17,39.08]
[1757340146836,0.06,213.2,213.17,39.75]
[1757340147149,0.06,213.2,213.18,0.67]
[1757340147327,0.06,213.2,213.19,4.69065153]
[1757340147735,0.06,213.2,213.19,5.36065153]
[1757340148041,0.06,213.2,213.19,18.95624554]
[1757340148749,0.06,213.2,213.19,57.97624554]
[1757340149432,0.06,213.2,213.19,57.95624554]
[1757340151661,0.06,213.2,213.19,83.95624554]
[1757340151855,0.06,213.2,213.19,44.95624554]
[1757340152060,0.06,213.2,213.19,83.89624554]
[1757340152563,1e-08,213.2,213.19,83.89624554]
[1757340152767,1e-08,213.2,213.19,57.89624554]
[1757340152949,0.06,213.23,213.22,13.59559401]
[1757340153152,0.06,213.23,213.22,52.96459316]
[1757340153458,0.06,213.23,213.22,58.32458471]
[1757340153652,1e-08,213.23,213.22,58.32458471]
[1757340153853,1e-08,213.25,213.24,39.59559401]
[1757340154075,0.68,213.36,213.25,13.59559401]
[1757340154253,0.68,213.36,213.26,52.96450519]
[1757340154449,0.68,213.36,213.26,53.63450519]
[1757340154747,1e-08,213.27,213.26,53.63450519]
[1757340155574,1e-08,213.27,213.26,58.32361707]
[1757340156240,1e-08,213.28,213.27,13.59559401]
[1757340156441,0.06,213.38,213.29,39.59559401]
[1757340156643,0.06,213.38,213.29,78.43559401]
[1757340156863,0.06,213.38,213.29,79.11559401]
[1757340157546,0.06,213.38,213.29,84.27289158]
[1757340158661,0.06,213.38,213.29,84.21289158]
[1757340158858,0.06,213.38,213.36,39.59559401]
[1757340159177,0.06,213.38,213.36,64.78]
[1757340159871,0.06,213.38,213.36,26.0]
[1757340160054,0.06,213.38,213.36,64.76]
[1757340160450,0.06,213.38,213.36,83.04250814]
[1757340161065,0.06,213.38,213.36,83.02250814]
[1757340161460,0.73,213.37,213.36,38.72]
[1757340162183,0.06,213.37,213.36,38.72]
[1757340162364,0.06,213.37,213.36,52.31559401]
[1757340163472,0.06,213.37,213.36,57.00250814]
[1757340163680,0.06,213.37,213.36,57.68250814]
[1757340163870,0.06,213.38,213.37,13.59559401]
[1757340164069,0.06,213.38,213.37,14.74426345]
[1757340165381,0.73,213.38,213.37,14.06426345]
[1757340165559,0.73,213.38,213.19,0.03]
[1757340165763,14.26559401,213.37,213.18,4.69087156]
[1757340166060,10.73394904,213.34,213.22,0.68]
[1757340166368,11.40394904,213.33,213.23,40.42]